bitfinex-derivatives/quotes_SOLF0:USTF0_20251211
["timestamp","ask_amount","ask_price","bid_price","bid_amount"]
[1765445270925,0.055539,130.92,130.9,6.8741]
[1765445271125,0.055539,130.92,130.9,9.17210635]
[1765445274526,0.055539,130.92,130.9,6.8741]
[1765445274730,0.055539,130.92,130.9,9.17210635]
[1765445277428,0.055539,130.92,130.91,2.29800635]
[1765445280439,3.23,130.99,130.92,106.9153]
[1765445280635,3.23,130.99,130.95,2.29800635]
[1765445280829,3.23,130.99,130.93,64.88]
[1765445281037,3.23,130.99,130.94,2.29800635]
[1765445281238,3.23,130.99,130.95,6.8714]
[1765445281443,3.23,130.97,130.96,0.05772085]
[1765445282841,0.05820878,130.98,130.96,9.2266272]
[1765445283048,0.05820878,130.98,130.96,74.1066272]
[1765445284538,3.28820878,130.98,130.96,74.1066272]
[1765445284740,3.28820878,130.98,130.96,71.80862085]
[1765445285049,3.28820878,130.98,130.96,74.1066272]
[1765445286681,3.28820878,130.98,130.96,64.93772085]
[1765445289846,0.05820878,130.98,130.96,64.93772085]
[1765445290447,0.05820878,130.98,130.97,2.29800635]
[1765445290751,0.05820878,130.98,130.96,71.80852085]
[1765445290952,0.05820878,130.98,130.96,74.1065272]
[1765445292149,3.46820878,130.98,130.96,74.1065272]
[1765445293342,3.46820878,130.98,130.96,71.80852085]
[1765445293954,3.46820878,130.98,130.96,64.93772085]
[1765445296357,0.05820878,130.98,130.96,64.93772085]
[1765445296561,0.05820878,130.98,130.96,67.2357272]
[1765445297957,0.05820878,130.98,130.96,74.1066272]
[1765445306571,9.16470635,131.05,130.97,106.8741]
[1765445306572,3.41,131.05,130.97,106.8741]
[1765445306772,3.41,131.05,131.01,2.29800635]
[1765445307071,3.41,131.05,131.01,67.15800635]
[1765445307466,3.45971767,131.04,131.02,0.0578018]
[1765445308367,0.04971767,131.04,131.02,0.0578018]
[1765445308662,3.45971767,131.04,131.02,2.35580815]
[1765445309871,3.45971767,131.04,131.02,9.22350815]
[1765445310067,3.45971767,131.04,131.02,2.35580815]
[1765445310278,3.45971767,131.04,131.02,0.0578018]
[1765445318374,0.04971767,131.04,131.03,2.29800635]
[1765445320264,3.16971767,131.04,131.03,2.29800635]
[1765445324683,3.16971767,131.04,131.02,10.50880539]
[1765445329282,0.04971767,131.04,131.02,10.50880539]
[1765445333193,0.04971767,131.04,131.03,64.84]
[1765445347195,3.12,131.08,131.03,64.84]
[1765445347401,3.11,131.1,131.07,3.58330359]
[1765445347602,3.11,131.1,131.08,64.82]
[1765445348502,3.15880895,131.1,131.08,64.87783465]
[1765445349000,3.15880895,131.1,131.08,71.74243465]
[1765445349192,3.15880895,131.1,131.08,64.87783465]
[1765445349990,3.15880895,131.1,131.08,71.74233465]
[1765445358516,3.15880895,131.1,131.09,64.82]
[1765445364916,0.04880895,131.1,131.09,64.82]
[1765445371935,0.04880895,131.1,131.09,68.40330359]
[1765445372733,19.31,131.14,131.1,6.8636]
[1765445372930,3.31,131.14,131.09,68.40330359]
[1765445373732,3.35861072,131.13,131.1,0.05532673]
[1765445374036,3.35861072,131.13,131.11,6.8631]
[1765445379439,0.04861072,131.13,131.11,6.8631]
[1765445380130,3.41861072,131.13,131.11,6.8631]
[1765445380334,3.41861072,131.13,131.1,0.05532673]
[1765445380527,3.41861072,131.13,131.1,64.85532673]
[1765445381136,3.41861072,131.13,131.1,0.05532673]
[1765445382033,3.37,131.11,131.1,0.05532673]
[1765445382537,3.37,131.09,131.05,6.8659]
[1765445382731,3.37,131.09,131.03,71.667]
[1765445383132,3.37,131.09,131.06,6.8657]
[1765445383538,3.42544572,131.09,131.06,6.91886331]
[1765445385746,3.42544572,131.09,131.06,0.05316331]
[1765445389646,3.42544572,131.09,131.06,2.34619423]
[1765445390350,0.05544572,131.09,131.06,9.21179423]
[1765445390846,0.05544572,131.09,131.07,6.8651]
[1765445391044,0.05544572,131.09,131.07,71.6651]
[1765445393653,0.05544572,131.09,131.07,73.95813092]
[1765445398557,0.05544572,131.09,131.07,71.6651]
[1765445398758,0.05544572,131.09,131.08,2.29303092]
[1765445399655,0.05544572,131.09,131.07,71.6651]
[1765445399846,0.05544572,131.09,131.08,2.29303092]
[1765445400957,0.05544572,131.09,131.07,71.6651]
[1765445401158,0.05544572,131.09,131.08,2.29303092]
[1765445401558,3.42544572,131.09,131.07,71.6651]
[1765445401755,3.42544572,131.09,131.07,6.8651]
[1765445402054,3.42544572,131.09,131.07,71.6651]
[1765445402946,0.05544572,131.09,131.07,71.6651]
[1765445403560,0.05544572,131.09,131.07,6.8651]
[1765445403861,0.05544572,131.09,131.07,71.6651]
[1765445404947,0.05544572,131.09,131.07,6.8651]
[1765445405146,0.05544572,131.09,131.07,71.6851]
[1765445405347,0.05544572,131.09,131.07,6.8651]
[1765445405758,0.05544572,131.09,131.07,71.6851]
[1765445405962,0.05544572,131.09,131.07,6.8651]
[1765445406261,3.36,131.14,131.08,173.89383092]
[1765445406457,3.36,131.16,131.12,2.29303092]
[1765445406659,3.36,131.16,131.14,2.29303092]
[1765445407053,3.41148048,131.16,131.14,0.05414809]
[1765445408659,0.05148048,131.16,131.14,0.05414809]
[1765445409068,3.41148048,131.16,131.14,0.05414809]
[1765445409264,0.05148048,131.16,131.14,0.05414809]
[1765445410569,0.05148048,131.16,131.15,2.29303092]
[1765445413160,3.35148048,131.16,131.15,2.29303092]
[1765445413868,0.05148048,131.16,131.14,6.91544809]
[1765445414069,0.05148048,131.16,131.14,9.20847901]
[1765445416767,0.05148048,131.16,131.14,6.91544809]
[1765445417067,0.05148048,131.16,131.14,9.20847901]
[1765445417262,3.35148048,131.16,131.14,2.34717901]
[1765445417469,3.35148048,131.16,131.14,0.05414809]
[1765445419270,3.3,131.15,131.1,9.15633092]
[1765445419672,3.3,131.15,131.1,6.8633]
[1765445420175,3.3,131.13,131.11,0.05643906]
[1765445422575,3.34960223,131.14,131.11,6.91933906]
[1765445423269,0.04960223,131.14,131.12,9.15553092]
[1765445424068,0.04960223,131.14,131.13,2.29303092]
[1765445426178,3.3,131.2,131.13,109.03473092]
[1765445426484,3.3,131.2,131.16,2.29303092]
[1765445427586,3.35076662,131.19,131.17,0.05529804]
[1765445437498,3.15,131.18,131.17,0.05529804]
[1765445440508,3.20076662,131.19,131.17,0.05529804]
[1765445443095,3.20076662,131.19,131.17,2.34832896]
[1765445446817,3.20076662,131.19,131.17,0.05529804]
[1765445449316,0.05076662,131.19,131.17,6.91519804]
[1765445449517,3.20076662,131.19,131.17,6.91519804]
[1765445454319,3.20076662,131.19,131.17,0.05529804]
[1765445460721,0.05076662,131.19,131.17,0.05529804]
[1765445461224,0.05076662,131.19,131.17,6.91509804]
[1765445468734,0.05076662,131.19,131.17,71.67509804]
[1765445473236,0.05076662,131.19,131.17,75.25128921]
[1765445474431,0.05076662,131.19,131.18,64.76]
[1765445480627,3.21,131.26,131.22,6.857]
[1765445480833,3.21,131.28,131.21,68.33619117]
[1765445481332,3.21,131.28,131.21,64.76]
[1765445481731,3.25889733,131.26,131.23,0.05170652]
[1765445489951,3.21,131.25,131.23,0.00170652]
[1765445490143,3.21,131.25,131.18,71.5993]
[1765445491150,3.21,131.22,131.2,0.05570655]
[1765445493852,3.21,131.22,131.13,106.7387]
[1765445493853,3.21,131.21,131.13,110.31489117]
[1765445494147,3.21,131.21,131.14,64.74]
[1765445494746,3.11,131.18,131.16,0.04838442]
[1765445496440,19.11,131.18,131.16,0.04838442]
[1765445496749,3.11,131.17,131.16,0.04838442]
[1765445501846,3.11,131.17,131.12,6.8625]
[1765445502043,3.11,131.17,131.11,64.76]
[1765445503149,3.16587891,131.15,131.13,0.05075156]
[1765445513855,10.02727891,131.15,131.13,0.05075156]
[1765445514061,3.11,131.14,131.13,0.05075156]
[1765445519359,3.16587891,131.15,131.13,0.05075156]
[1765445520968,0.05587891,131.15,131.13,0.05075156]
[1765445522069,0.05587891,131.15,131.13,6.91275156]
[1765445525774,3.39587891,131.15,131.13,0.05075156]
[1765445533796,3.28,131.14,131.13,0.05075156]
[1765445538110,0.05587891,131.15,131.13,0.05075156]
[1765445539091,3.33587891,131.15,131.13,0.05075156]
[1765445541897,0.05587891,131.15,131.13,0.05075156]
[1765445542602,3.33587891,131.15,131.13,0.05075156]
[1765445543010,0.05587891,131.15,131.13,9.20379696]
[1765445543689,3.33587891,131.15,131.13,0.05075156]
[1765445549704,0.05587891,131.15,131.14,2.2911454]
[1765445550908,0.05587891,131.15,131.13,6.91265156]
[1765445551095,0.05587891,131.15,131.13,9.20379696]
[1765445551496,3.33587891,131.15,131.13,9.20379696]
[1765445552304,3.33587891,131.15,131.13,0.05075156]
[1765445556505,0.05587891,131.15,131.13,0.05075156]
[1765445556713,0.05587891,131.15,131.13,9.20379696]
[1765445559214,0.05587891,131.15,131.13,6.91265156]
[1765445559417,0.05587891,131.15,131.13,9.20379696]
[1765445562215,3.28587891,131.15,131.13,9.20379696]
[1765445564718,0.05587891,131.15,131.13,9.20379696]
[1765445567608,3.28587891,131.15,131.13,9.20379696]
[1765445568820,3.28587891,131.15,131.13,6.91265156]
[1765445572820,0.05587891,131.15,131.13,6.91265156]
[1765445573523,0.05587891,131.15,131.14,64.78]
[1765445580029,16.0,131.19,131.14,68.35848643]
[1765445580224,19.23,131.19,131.14,68.35848643]
[1765445580617,3.23,131.19,131.16,6.8602]
[1765445580818,3.23,131.19,131.17,64.78]
[1765445581119,0.05132532,131.19,131.17,71.69444909]
[1765445583229,0.05132532,131.19,131.18,3.57848643]
[1765445583830,3.23,131.22,131.18,10.43758643]
[1765445584924,3.35678944,131.21,131.19,6.8588]
[1765445585123,0.05678944,131.21,131.19,6.90734222]
[1765445585527,0.05678944,131.21,131.2,64.78]
[1765445586428,16.0,131.26,131.2,75.21648643]
[1765445586628,3.3,131.25,131.2,68.35848643]
[1765445587538,3.35508983,131.24,131.21,0.05417629]
[1765445588035,3.35508983,131.24,131.21,6.91197629]
[1765445591637,3.35508983,131.24,131.22,6.8572]
[1765445592141,3.35508983,131.24,131.22,10.43568643]
[1765445592142,0.05508983,131.24,131.22,10.43568643]
[1765445592435,0.05508983,131.24,131.23,64.76]
[1765445594335,19.14,131.28,131.24,6.8561]
[1765445594547,3.14,131.27,131.24,6.8561]
[1765445595248,3.14,131.27,131.23,68.33848643]
[1765445595433,3.19590901,131.26,131.24,0.0548445]
[1765445596038,3.14,131.24,131.2,71.5983]
[1765445597140,3.1918634,131.23,131.21,0.05564376]
[1765445597543,0.0518634,131.23,131.21,6.91344376]
[1765445598943,3.1918634,131.23,131.21,0.05564376]
[1765445615447,19.31,131.22,131.16,71.6002]
[1765445615649,3.31,131.21,131.16,71.6002]
[1765445616550,3.31,131.19,131.17,0.05341674]
[1765445628665,3.31,131.19,131.17,2.34196255]
[1765445630771,3.31,131.19,131.17,0.05341674]
[1765445630960,3.31,131.19,131.14,2.28854581]
[1765445631875,3.31,131.18,131.15,0.05593014]
[1765445639579,10.1697,131.18,131.15,0.05593014]
[1765445639779,3.31,131.17,131.15,0.05593014]
[1765445640080,3.36446968,131.17,131.15,0.05593014]
[1765445640675,3.36446968,131.17,131.12,6.8625]
[1765445640676,3.31,131.15,131.08,106.7852]
[1765445640875,3.31,131.15,131.08,171.5452]
[1765445641086,3.31,131.15,131.11,2.28854581]
[1765445641284,3.31,131.15,131.13,2.28854581]
[1765445641797,3.36642706,131.15,131.13,2.33771294]
[1765445643584,3.36642706,131.15,131.13,0.04916713]
[1765445643796,3.36642706,131.15,131.14,2.28854581]
[1765445646905,3.36642706,131.15,131.13,0.04916713]
[1765445648389,3.14,131.14,131.1,2.28854581]
[1765445649098,3.14,131.14,131.08,64.76]
[1765445649300,3.14,131.14,131.09,2.28854581]
[1765445649494,3.14,131.11,131.1,0.05733203]
[1765445656299,3.14,131.11,131.1,2.34587784]
[1765445657102,0.04898899,131.12,131.1,2.34587784]
[1765445657103,3.39898899,131.12,131.1,2.34587784]
[1765445657302,3.39898899,131.12,131.1,9.20927784]
[1765445659604,3.39898899,131.12,131.1,6.92073203]
[1765445659802,3.39898899,131.12,131.1,9.20927784]
[1765445660500,0.04898899,131.12,131.1,9.20927784]
[1765445666805,0.04898899,131.12,131.11,64.78]
[1765445667814,3.35,131.16,131.11,171.5409]
[1765445668002,3.35,131.16,131.14,2.28854581]
[1765445668706,3.40159226,131.16,131.14,2.34031432]
[1765445671617,3.40159226,131.16,131.14,0.05176851]
[1765445676024,0.05159226,131.16,131.15,2.28854581]
[1765445676326,3.29159226,131.16,131.15,2.28854581]
[1765445676716,3.29159226,131.16,131.14,0.05176851]
[1765445677026,3.29159226,131.16,131.14,2.34031432]
[1765445677924,3.29159226,131.16,131.14,9.20181432]
[1765445678619,3.29159226,131.16,131.14,0.05176851]
[1765445683124,3.29159226,131.16,131.1,6.8634]
[1765445683319,3.24,131.14,131.08,2.28854581]
[1765445683719,3.24,131.12,131.07,73.93334581]
[1765445684615,0.05641677,131.11,131.08,0.04921185]
[1765445684827,3.24,131.1,131.08,0.04921185]
[1765445686629,3.24,131.1,131.04,2.28854581]
[1765445686923,3.24,131.08,131.04,2.28854581]
[1765445687722,3.24,131.06,131.04,2.28854581]
[1765445688422,3.24,131.06,131.03,73.93564581]
[1765445690730,3.24,131.06,131.03,71.6471]
[1765445691430,3.29447678,131.07,131.03,71.6471]
[1765445691831,0.05447678,131.07,131.04,106.8166]
[1765445692034,0.05447678,131.07,131.05,3.58315171]
[1765445692936,0.05447678,131.07,131.05,10.44915171]
[1765445696938,0.05447678,131.07,131.06,64.8]
[1765445697332,3.29447678,131.07,131.01,20.31605267]
[1765445697545,3.29447678,131.07,131.01,6.8681]
[1765445700237,3.29447678,131.07,131.0,68.38315171]
[1765445700632,3.29447678,131.07,131.0,64.8]
[1765445700838,3.29447678,131.07,131.0,68.38315171]
[1765445702038,3.29447678,131.07,131.0,75.25175171]
[1765445705439,3.29447678,131.07,131.02,3.58315171]
[1765445706741,0.05447678,131.07,131.03,6.8671]
[1765445706942,0.05447678,131.07,131.04,3.58315171]
[1765445707542,3.47447678,131.07,131.04,68.40315171]
[1765445707844,0.05447678,131.07,131.04,75.26975171]
[1765445708436,0.05447678,131.07,131.05,6.8661]
[1765445708634,0.05447678,131.07,131.06,3.58315171]
[1765445709940,106.7236,131.16,131.07,106.7932]
[1765445709941,3.42,131.13,131.07,106.7932]
[1765445710135,3.42,131.13,131.08,68.40315171]
[1765445710737,3.42,131.13,131.08,64.82]
[1765445710935,3.42,131.11,131.09,0.05555651]
[1765445719055,3.1,131.14,131.11,6.8628]
[1765445719253,3.1,131.14,131.12,68.38315171]
[1765445720155,3.15706514,131.14,131.12,68.43938017]
[1765445723074,3.15706514,131.14,131.12,75.30178017]
[1765445725674,0.05706514,131.14,131.12,75.30178017]
[1765445730079,3.15706514,131.14,131.12,75.30178017]
[1765445738582,0.05706514,131.14,131.12,75.30178017]
[1765445743191,0.05706514,131.14,131.12,71.71862846]
[1765445743387,3.15706514,131.14,131.12,71.71862846]
[1765445743588,3.15706514,131.14,131.13,64.78]
[1765445743983,0.05706514,131.14,131.13,64.78]
[1765445746195,0.05706514,131.14,131.12,6.91862846]
[1765445746394,0.05706514,131.14,131.13,64.78]
[1765445748597,3.1,131.2,131.16,6.8606]
[1765445748894,3.1,131.2,131.14,106.7363]
[1765445748895,3.1,131.2,131.17,64.78]
[1765445749695,3.1564474,131.2,131.17,64.8337669]
[1765445749997,3.1564474,131.2,131.17,71.6936669]
[1765445754501,3.1,131.19,131.17,0.0537669]
[1765445754696,3.1,131.17,131.15,64.78]
[1765445755703,3.1,131.16,131.15,64.83276702]
[1765445756796,3.1,131.16,131.15,0.05276702]
[1765445761911,3.1,131.14,131.1,6.8633]
[1765445762112,3.1,131.13,131.1,6.8633]
[1765445762408,3.1,131.13,131.08,73.93295072]
[1765445762912,3.14915376,131.12,131.09,0.0558467]
[1765445763206,3.1,131.11,131.09,0.0558467]
[1765445764108,3.1,131.1,131.09,0.0558467]
[1765445768913,3.1,131.1,131.05,2.28865072]
[1765445769213,3.27,131.09,131.05,2.28865072]
[1765445769907,3.31956289,131.08,131.05,9.15485072]
[1765445772813,3.31956289,131.08,131.03,6.867]
[1765445773018,3.29,131.06,131.03,9.15565072]
[1765445773609,3.29,131.06,131.03,2.28865072]
[1765445778115,3.29,131.06,131.02,9.15645072]
[1765445779927,16.04989151,131.07,131.04,2.28865072]
[1765445779928,19.33989151,131.07,131.04,2.28865072]
[1765445780323,3.29,131.06,131.04,2.28865072]
[1765445782130,3.29,131.06,131.04,9.15535072]
[1765445782534,0.04989151,131.07,131.05,6.8662]
[1765445782830,0.04989151,131.07,131.06,2.28865072]
[1765445784128,3.29,131.11,131.07,6.8651]
[1765445784336,3.29,131.11,131.08,2.28865072]
[1765445785137,3.34530238,131.11,131.08,2.34059897]
[1765445786334,0.05530238,131.11,131.08,9.20509897]
[1765445786632,0.05530238,131.11,131.09,64.82]
[1765445788641,0.05530238,131.11,131.1,2.28865072]
[1765445789341,0.05530238,131.11,131.09,71.6838]
[1765445789542,0.05530238,131.11,131.1,2.28865072]
[1765445792345,0.05530238,131.11,131.1,67.10865072]
[1765445795247,3.38,131.16,131.1,173.87505072]
[1765445795552,3.38,131.16,131.14,2.28865072]
[1765445795750,3.38,131.16,131.14,67.08865072]
[1765445796149,3.38,131.16,131.13,64.8]
[1765445796445,3.43364588,131.16,131.13,0.04913778]
[1765445797953,10.29444588,131.16,131.13,0.04913778]
[1765445798150,3.38,131.15,131.13,0.04913778]
[1765445798642,3.43364588,131.16,131.13,2.3377885]
[1765445800149,3.43364588,131.16,131.13,0.04913778]
[1765445803759,3.38,131.15,131.13,0.04913778]
[1765445804453,3.38,131.14,131.13,0.04913778]
[1765445805159,3.38,131.14,131.1,2.28865072]
[1765445805349,3.38,131.12,131.08,67.08865072]
[1765445806649,3.43432431,131.11,131.09,0.05811212]
[1765445815857,0.05432431,131.11,131.09,0.05811212]
[1765445817064,3.43432431,131.11,131.09,0.05811212]
[1765445824869,3.43432431,131.11,131.09,6.92221212]
[1765445824870,0.05432431,131.11,131.09,6.92221212]
[1765445827170,0.05432431,131.11,131.1,64.8]
[1765445828674,0.05432431,131.11,131.1,68.38122154]
[1765445830873,0.05432431,131.11,131.1,64.8]
[1765445835374,0.05432431,131.11,131.09,10.50343366]
[1765445835569,0.05432431,131.11,131.1,64.8]
[1765445836680,3.41432431,131.11,131.1,64.8]
[1765445850303,3.41432431,131.11,131.09,0.05811212]
[1765445851099,10.27752431,131.11,131.09,0.05811212]
[1765445851296,3.36,131.1,131.09,0.05811212]
[1765445861113,3.33432431,131.11,131.09,0.05811212]
[1765445861313,0.05432431,131.11,131.09,0.05811212]
[1765445861912,0.05432431,131.11,131.09,6.92221212]
[1765445864009,0.05432431,131.11,131.1,3.58122154]
[1765445866623,0.05432431,131.11,131.1,68.38122154]
[1765445866826,0.05432431,131.11,131.1,69.90122154]
[1765445867317,3.28,131.17,131.12,6.8626]
[1765445867520,3.28,131.17,131.12,10.44382154]
[1765445868322,0.04839213,131.16,131.13,0.05107731]
[1765445868512,3.28,131.15,131.13,0.05107731]
[1765445872922,3.28,131.14,131.13,0.05107731]
[1765445896947,3.24,131.11,131.06,6.8654]
[1765445897247,3.24,131.1,131.06,6.8654]
[1765445897448,3.24,131.1,131.04,9.15728321]
[1765445897645,3.24,131.08,131.04,6.8666]
[1765445897947,3.29740797,131.07,131.05,0.05515099]
[1765445898139,3.29478163,131.07,131.05,0.05515099]
[1765445899245,0.05478163,131.07,131.05,9.2118342]
[1765445899452,3.29478163,131.07,131.05,6.92115099]
[1765445901551,0.05478163,131.07,131.05,6.92115099]
[1765445901852,0.05478163,131.07,131.06,2.29068321]
[1765445903057,3.24,131.11,131.07,6.865]
[1765445904157,0.05394692,131.1,131.08,0.05384284]
[1765445907560,0.05394692,131.1,131.08,2.34452605]
[1765445908261,0.05394692,131.1,131.08,74.00902605]
[1765445910662,0.05394692,131.1,131.08,67.14452605]
[1765445910663,3.29394692,131.1,131.08,67.14452605]
[1765445911957,0.05394692,131.1,131.08,67.14452605]
[1765445913664,3.24,131.13,131.08,67.14452605]
[1765445913865,19.24,131.15,131.12,2.29068321]
[1765445914056,3.24,131.15,131.12,2.29068321]
[1765445914666,0.05330162,131.15,131.12,67.13910491]
[1765445914859,3.48330162,131.15,131.12,67.13910491]
[1765445915956,3.48330162,131.15,131.12,74.00160491]
[1765445918368,3.48330162,131.15,131.12,9.20160491]
[1765445922482,3.48330162,131.15,131.12,6.9109217]
[1765445923172,3.48330162,131.15,131.12,0.0484217]
[1765445924571,3.43,131.14,131.12,0.0484217]
[1765445929070,19.48330162,131.15,131.12,2.33910491]
[1765445929570,3.43,131.14,131.12,2.33910491]
[1765445929972,3.43,131.14,131.12,9.20160491]
[1765445930472,0.05330162,131.15,131.13,6.862]
[1765445930774,0.05330162,131.15,131.14,2.29068321]
[1765445934772,0.05330162,131.15,131.13,6.862]
[1765445940483,3.48330162,131.15,131.14,64.78]
[1765445941686,0.05330162,131.15,131.14,64.78]
[1765445950491,3.2,131.2,131.15,6.8609]
[1765445951494,3.2,131.18,131.16,0.05182097]
[1765445953105,3.33100774,131.19,131.16,6.91232097]
[1765445958693,3.33100774,131.19,131.17,6.8597]
[1765445958892,0.05100774,131.19,131.17,6.8597]
[1765445960195,0.05100774,131.19,131.18,64.78]
[1765445964497,3.28,131.23,131.18,64.78]
[1765445965588,0.05541019,131.22,131.2,6.8583]
[1765445965788,0.05541019,131.22,131.2,6.91004482]
[1765445966002,0.05541019,131.22,131.21,64.76]
[1765445975607,3.32541019,131.22,131.21,64.76]
[1765445978611,3.32541019,131.22,131.2,0.05174482]
[1765445981413,10.18311019,131.22,131.2,0.05174482]
[1765445981706,3.27,131.21,131.2,0.05174482]
[1765445982099,3.27,131.21,131.14,106.7316]
[1765445982298,3.27,131.21,131.15,71.6207]
[1765445982609,3.27,131.21,131.15,64.76]
[1765445983110,0.05443818,131.19,131.17,0.05176878]
[1765445983310,3.27,131.18,131.17,0.05176878]
[1765445990411,3.27,131.18,131.15,64.76]
[1765445990619,3.27,131.18,131.11,171.5206]
[1765445991424,0.05612694,131.16,131.13,0.05766172]
[1765445991608,3.32612694,131.16,131.13,0.05766172]
[1765445991917,3.32612694,131.16,131.13,6.91956172]
[1765445994910,0.05612694,131.16,131.14,6.8614]
[1765445995109,0.05612694,131.16,131.15,64.76]
[1765446000929,3.32612694,131.16,131.13,0.05766172]
[1765446001224,3.32612694,131.16,131.13,64.83766172]
[1765446001830,3.32612694,131.16,131.13,0.05766172]
[1765446004731,10.18702694,131.16,131.13,0.05766172]
[1765446005127,3.19,131.15,131.13,0.05766172]
[1765446011422,3.19,131.15,131.13,2.34694594]
[1765446015029,0.05612694,131.16,131.13,2.34694594]
[1765446015227,0.05612694,131.16,131.15,2.28928422]
[1765446017334,3.17612694,131.16,131.13,0.05766172]
[1765446018630,3.17612694,131.16,131.14,2.28928422]
[1765446018829,0.05612694,131.16,131.14,2.28928422]
[1765446019337,3.17612694,131.16,131.14,2.28928422]
[1765446024538,3.17612694,131.16,131.13,6.91966172]
[1765446024743,3.17612694,131.16,131.14,2.28928422]
[1765446025437,0.05612694,131.16,131.14,2.28928422]
[1765446025838,3.17612694,131.16,131.14,2.28928422]
[1765446027743,3.17612694,131.16,131.13,9.20894594]
[1765446027944,3.17612694,131.16,131.13,73.98894594]
[1765446028154,0.05612694,131.16,131.14,6.8615]
[1765446028450,0.05612694,131.16,131.15,2.28928422]
[1765446031543,0.05612694,131.16,131.14,6.8615]
[1765446031755,0.05612694,131.16,131.14,9.15078422]
[1765446032057,3.17612694,131.16,131.14,6.8615]
[1765446034564,3.17612694,131.16,131.14,9.15078422]
[1765446037568,0.05612694,131.16,131.14,9.15078422]
[1765446041371,3.17612694,131.16,131.14,6.8615]
[1765446041562,3.17612694,131.16,131.14,9.15078422]
[1765446041764,3.17612694,131.16,131.14,73.93078422]
[1765446042670,0.05612694,131.16,131.14,73.93078422]
[1765446051983,19.12,131.2,131.17,6.8598]
[1765446052181,3.12,131.2,131.17,73.92908422]
[1765446053081,3.16990165,131.2,131.17,73.9865395]
[1765446054077,3.12,131.15,131.09,106.7747]
[1765446054282,3.12,131.15,131.1,2.28928422]
[1765446054788,3.12,131.15,131.09,171.5547]
[1765446054993,3.12,131.15,131.11,6.863]
[1765446055193,3.16858278,131.13,131.11,0.05823089]
[1765446070001,3.44,131.12,131.09,64.78]
[1765446070299,3.44,131.11,131.07,6.865]
[1765446071004,3.44,131.09,131.08,0.0506744]
[1765446071205,0.05251998,131.1,131.08,0.0506744]
[1765446071206,3.49251998,131.1,131.08,0.0506744]
[1765446087027,3.49251998,131.1,131.08,6.9152744]
[1765446092929,0.05251998,131.1,131.08,6.9152744]
[1765446093731,3.16251998,131.1,131.08,6.9152744]
[1765446095829,0.05251998,131.1,131.08,6.9152744]
[1765446099633,0.05251998,131.1,131.09,64.8]
[1765446101736,3.13,131.12,131.1,6.8637]
[1765446102735,3.18059917,131.12,131.1,6.8637]
[1765446103638,0.05059917,131.12,131.1,6.8637]
[1765446105237,3.18059917,131.12,131.1,6.8637]
[1765446108842,3.13,131.15,131.12,6.8624]
[1765446109035,3.13,131.15,131.12,71.6624]
[1765446109940,3.17967846,131.15,131.12,71.7133866]
[1765446112643,3.17967846,131.15,131.13,6.8621]
[1765446113346,0.04967846,131.15,131.13,6.8621]
[1765446118739,0.04967846,131.15,131.14,2.28946062]
[1765446119042,0.04967846,131.15,131.13,6.8621]
[1765446119346,0.04967846,131.15,131.14,2.28946062]
[1765446121453,3.13,131.19,131.16,6.8603]
[1765446121661,3.13,131.19,131.16,67.06946062]
[1765446122043,3.13,131.21,131.16,67.06946062]
[1765446122543,3.18557629,131.2,131.17,0.0497704]
[1765446123051,3.18557629,131.2,131.17,6.9096704]
[1765446123746,3.18557629,131.2,131.17,0.0497704]
[1765446125454,12.33363691,131.2,131.17,0.0497704]
[1765446125658,3.29,131.19,131.17,0.0497704]
[1765446126459,19.29,131.19,131.17,0.0497704]
[1765446126654,3.29,131.18,131.17,0.0497704]
[1765446132964,16.0,131.19,131.17,0.0497704]
[1765446133165,19.16,131.19,131.17,9.19913102]
[1765446133463,16.0,131.19,131.17,9.19913102]
[1765446134362,19.16,131.19,131.17,9.19913102]
[1765446138366,3.16,131.19,131.17,9.19913102]
[1765446139864,0.05557629,131.2,131.18,71.639]
[1765446140069,0.05557629,131.2,131.19,2.28946062]
[1765446141369,3.21557629,131.2,131.18,71.639]
[1765446142973,3.21557629,131.2,131.18,64.78]
[1765446146075,3.21557629,131.2,131.17,6.9096704]
[1765446146873,3.21557629,131.2,131.17,0.0497704]
[1765446150375,3.16,131.19,131.17,0.0497704]
[1765446174101,3.16,131.19,131.18,2.28946062]